fUST/lending_fUST_20240422
["ID","MTS","AMOUNT","RATE_DAILY","PERIOD"]
[323174194,1713771048172,-500.0,0.00022739,2]
[323174195,1713771048182,-520.76,0.00022739,2]
[323174196,1713771048191,-500.0,0.00022739,2]
[323174197,1713771048201,-500.0,0.00022739,2]
[323174198,1713771048210,-500.0,0.00022739,2]
[323174199,1713771048220,-511.85838127,0.00022739,2]
[323174200,1713771048229,-845.63,0.00022739,2]
[323174201,1713771048238,-500.0,0.00022739,2]
[323174202,1713771048248,-500.0,0.00022739,2]
[323174203,1713771048258,-500.0,0.00022739,2]
[323174204,1713771048267,-500.0,0.00022739,2]
[323174205,1713771048277,-546.12,0.00022739,2]
[323174206,1713771048287,-500.0,0.00022739,2]
[323174207,1713771048296,-657.75,0.00022739,2]
[323174208,1713771048306,-1593.07,0.00022739,2]
[323174209,1713771048316,-540.67,0.00022739,2]
[323174210,1713771048325,-788.31,0.00022739,2]
[323174211,1713771048334,-1886.84,0.00022739,2]
[323174212,1713771048343,-500.0,0.00022739,2]
[323174213,1713771048353,-500.0,0.00022739,2]
[323174214,1713771048362,-1320.93,0.00022739,2]
[323174215,1713771048372,-500.0,0.00022739,2]
[323174216,1713771048381,-1499.42,0.00022739,2]
[323174217,1713771048391,-500.0,0.00022739,2]
[323174218,1713771048400,-551.6,0.00022739,2]
[323174219,1713771048410,-512.96,0.00022739,2]
[323174220,1713771048419,-500.0,0.00022739,2]
[323174221,1713771048429,-2279.58,0.00022739,2]
[323174222,1713771048439,-500.0,0.00022739,2]
[323174223,1713771048564,-2400.32,0.00022739,2]
[323174224,1713771048573,-500.0,0.00022739,2]
[323174225,1713771048582,-1042.84,0.00022739,2]
[323174226,1713771048591,-987.76,0.00022739,2]
[323174227,1713771048601,-500.0,0.00022739,2]
[323174228,1713771048610,-500.0,0.00022739,2]
[323174229,1713771048619,-891.53,0.00022739,2]
[323174230,1713771048628,-500.0,0.00022739,2]
[323174231,1713771048637,-662.27,0.00022739,2]
[323174232,1713771048646,-500.0,0.00022739,2]
[323174233,1713771048655,-544.28,0.00022739,2]
[323174234,1713771048664,-500.0,0.00022739,2]
[323174235,1713771048673,-500.0,0.00022739,2]
[323174236,1713771048682,-1893.47,0.00022739,2]
[323174237,1713771048691,-1209.09,0.00022739,2]
[323174238,1713771048701,-1729.68,0.00022739,2]
[323174239,1713771048709,-520.04,0.00022739,2]
[323174240,1713771048718,-530.72,0.00022739,2]
[323174241,1713771048728,-5968.09,0.00022739,2]
[323174242,1713771048738,-500.0,0.00022739,2]
[323174243,1713771048747,-814.84,0.00022739,2]
[323174244,1713771048757,-4318.26,0.00022739,2]
[323174245,1713771048767,-855.27,0.00022739,2]
[323174246,1713771048776,-500.0,0.00022739,2]
[323174247,1713771048786,-1637.34,0.00022739,2]
[323174248,1713771048795,-8414.55,0.00022739,2]
[323174249,1713771048804,-500.0,0.00022739,2]
[323174250,1713771048813,-500.0,0.00022739,2]
[323174251,1713771048823,-511.45,0.00022739,2]
[323174252,1713771048832,-500.0,0.00022739,2]
[323174253,1713771048843,-5942.22,0.00022739,2]
[323174254,1713771048852,-500.0,0.00022739,2]
[323174255,1713771048862,-500.0,0.00022739,2]
[323174256,1713771048871,-864.39,0.00022739,2]
[323174257,1713771048880,-1481.71,0.00022739,2]
[323174258,1713771048889,-500.0,0.00022739,2]
[323174259,1713771048898,-599.44,0.00022739,2]
[323174260,1713771048907,-929.38,0.00022739,2]
[323174261,1713771048917,-500.0,0.00022739,2]
[323174262,1713771048926,-824.57,0.00022739,2]
[323174263,1713771048935,-683.82,0.00022739,2]
[323174264,1713771048944,-500.0,0.00022739,2]
[323174265,1713771048954,-6331.87,0.00022739,2]
[323174266,1713771048963,-740.12,0.00022739,2]
[323174267,1713771048972,-1229.03,0.00022739,2]
[323174268,1713771048982,-500.0,0.00022739,2]
[323174269,1713771048991,-500.0,0.00022739,2]
[323174270,1713771049000,-1773.05,0.00022739,2]
[323174271,1713771049009,-500.0,0.00022739,2]
[323174272,1713771049019,-500.0,0.00022739,2]
[323174273,1713771049029,-9168.41,0.00022739,2]
[323174274,1713771049038,-500.0,0.00022739,2]
[323174275,1713771049047,-500.0,0.00022739,2]
[323174276,1713771049056,-500.0,0.00022739,2]
[323174277,1713771049065,-603.54,0.00022739,2]
[323174278,1713771049075,-545.2,0.00022739,2]
[323174279,1713771049084,-637.24,0.00022739,2]
[323174280,1713771049093,-500.0,0.00022739,2]
[323174281,1713771049103,-910.54,0.00022739,2]
[323174282,1713771049112,-671.87,0.00022739,2]
[323174283,1713771049122,-1223.34,0.00022739,2]
[323174284,1713771049131,-5648.11,0.00022739,2]
[323174285,1713771049140,-816.69,0.00022739,2]
[323174286,1713771049150,-500.0,0.00022739,2]
[323174287,1713771049160,-1094.87,0.00022739,2]
[323174288,1713771049169,-548.0257005,0.00022739,2]
[323174289,1713771049179,-500.0,0.00022739,2]
[323174290,1713771049189,-206.85640419,0.00022739,2]
[323174291,1713771049199,-4561.56,0.00022739,2]
[323174292,1713771049210,-500.0,0.00022739,2]
[323174293,1713771049219,-500.0,0.00022739,2]
[323174294,1713771049229,-500.0,0.00022739,2]
[323174295,1713771049239,-500.0,0.00022739,2]
[323174296,1713771049249,-500.0,0.00022739,2]
[323174297,1713771049258,-521.6,0.00022739,2]
[323174298,1713771049268,-748.06,0.00022739,2]
[323174299,1713771049277,-660.25,0.00022739,2]
[323174300,1713771049286,-151.0,0.00022739,2]
[323174301,1713771049296,-596.6456619,0.00023,3]
[323174302,1713771049305,-232.71054593,0.00023011,2]
[323174303,1713771049315,-239.23605865,0.00023012,2]
[323174304,1713771049324,-2707.29397658,0.00023013,10]
[323174305,1713771049334,-154.84515485,0.00023013,2]
[323174306,1713771049343,-909.83,0.00023013,2]
[323174307,1713771049353,-500.0,0.00023013,2]
[323174308,1713771049363,-649.35,0.00023013,2]
[323174309,1713771049372,-781.95,0.00023013,2]
[323174310,1713771049381,-500.0,0.00023013,2]
[323174311,1713771049391,-618.79,0.00023013,2]
[323174312,1713771049401,-500.0,0.00023013,2]
[323174313,1713771049410,-500.0,0.00023013,2]
[323174314,1713771049419,-1676.89,0.00023013,2]
[323174315,1713771049429,-500.0,0.00023013,2]
[323174316,1713771049438,-500.0,0.00023013,2]
[323174317,1713771049448,-1796.53,0.00023013,2]
[323174318,1713771049460,-500.0,0.00023013,2]
[323174319,1713771049469,-500.0,0.00023013,2]
[323174320,1713771049478,-500.0,0.00023013,2]
[323174321,1713771049488,-500.0,0.00023013,2]
[323174322,1713771049497,-500.0,0.00023013,2]
[323174323,1713771049506,-500.0,0.00023013,2]
[323174324,1713771049516,-532.06,0.00023013,2]
[323174325,1713771049526,-500.0,0.00023013,2]
[323174326,1713771049539,-528.59,0.00023013,2]
[323174327,1713771049548,-510.11,0.00023013,2]
[323174328,1713771049557,-563.65,0.00023013,2]
[323174329,1713771049567,-500.0,0.00023013,2]
[323174330,1713771049577,-340.0,0.00023013,2]
[323174331,1713771049586,-1715.53,0.00023013,2]
[323174332,1713771049596,-500.0,0.00023013,2]
[323174333,1713771049605,-500.0,0.00023013,2]
[323174334,1713771049614,-838.09,0.00023013,2]
[323174335,1713771049623,-500.0,0.00023013,2]
[323174336,1713771049632,-500.0,0.00023013,2]
[323174337,1713771049641,-500.0,0.00023013,2]
[323174338,1713771049650,-1211.3,0.00023013,2]
[323174339,1713771049659,-500.0,0.00023013,2]
[323174340,1713771049669,-500.0,0.00023013,2]
[323174341,1713771049678,-412.55059555,0.00023013,2]
[323174342,1713771049688,-1791.31,0.00023013,2]
[323174343,1713771049697,-765.95,0.00023013,2]
[323174344,1713771049706,-672.43,0.00023013,2]
[323174345,1713771049715,-500.0,0.00023013,2]
[323174346,1713771049724,-500.0,0.00023013,2]
[323174347,1713771049734,-703.56,0.00023013,2]
[323174348,1713771049743,-810.54,0.00023013,2]
[323174349,1713771049753,-500.0,0.00023013,2]
[323174350,1713771049762,-500.0,0.00023013,2]
[323174351,1713771049771,-500.0,0.00023013,2]
[323174352,1713771049780,-1339.24,0.00023013,2]
[323174353,1713771049790,-3162.37,0.00023013,2]
[323174354,1713771049799,-500.0,0.00023013,2]
[323174355,1713771049808,-1126.55,0.00023013,2]
[323174356,1713771049817,-940.4,0.00023013,2]
[323174357,1713771049827,-584.61,0.00023013,2]
[323174358,1713771049836,-500.0,0.00023013,2]
[323174359,1713771049845,-500.0,0.00023013,2]
[323174360,1713771049854,-500.0,0.00023013,2]
[323174361,1713771049864,-2107.45,0.00023013,2]
[323174362,1713771049873,-1238.19,0.00023013,2]
[323174363,1713771049882,-500.0,0.00023013,2]
[323174364,1713771049891,-631.52,0.00023013,2]
[323174365,1713771049901,-500.0,0.00023013,2]
[323174366,1713771049910,-500.0,0.00023013,2]
[323174367,1713771049919,-694.59,0.00023013,2]
[323174368,1713771049928,-500.0,0.00023013,2]
[323174369,1713771049937,-500.0,0.00023013,2]
[323174370,1713771049947,-500.0,0.00023013,2]
[323174371,1713771049956,-1436.04,0.00023013,2]
[323174372,1713771049965,-532.95,0.00023013,2]
[323174373,1713771049975,-500.0,0.00023013,2]
[323174374,1713771049984,-500.0,0.00023013,2]
[323174375,1713771049993,-500.0,0.00023013,2]
[323174376,1713771050002,-651.21,0.00023013,2]
[323174377,1713771050012,-500.0,0.00023013,2]
[323174378,1713771050021,-500.0,0.00023013,2]
[323174379,1713771050030,-500.0,0.00023013,2]
[323174380,1713771050040,-983.71,0.00023013,2]
[323174381,1713771050049,-500.0,0.00023013,2]
[323174382,1713771050060,-748.79,0.00023013,2]
[323174383,1713771050069,-500.0,0.00023013,2]
[323174384,1713771050079,-773.15,0.00023013,2]
[323174385,1713771050089,-1482.76,0.00023013,2]
[323174386,1713771050098,-500.0,0.00023013,2]
[323174387,1713771050108,-713.22,0.00023013,2]
[323174388,1713771050117,-500.0,0.00023013,2]
[323174389,1713771050127,-500.0,0.00023013,2]
[323174390,1713771050136,-520.76,0.00023013,2]
[323174391,1713771050146,-500.0,0.00023013,2]
[323174392,1713771050155,-500.0,0.00023013,2]
[323174393,1713771050165,-500.0,0.00023013,2]
[323174394,1713771050174,-845.63,0.00023013,2]
[323174395,1713771050184,-500.0,0.00023013,2]
[323174396,1713771050193,-500.0,0.00023013,2]
[323174397,1713771050203,-500.0,0.00023013,2]
[323174398,1713771050213,-500.0,0.00023013,2]
[323174399,1713771050222,-546.12,0.00023013,2]
[323174400,1713771050232,-500.0,0.00023013,2]
[323174401,1713771050242,-657.75,0.00023013,2]
[323174402,1713771050251,-1593.07,0.00023013,2]
[323174403,1713771050261,-540.67,0.00023013,2]
[323174404,1713771050271,-788.31,0.00023013,2]
[323174405,1713771050283,-1886.84,0.00023013,2]
[323174406,1713771050293,-500.0,0.00023013,2]
[323174407,1713771050303,-500.0,0.00023013,2]
[323174408,1713771050312,-1320.93,0.00023013,2]
[323174409,1713771050322,-500.0,0.00023013,2]
[323174410,1713771050331,-1499.42,0.00023013,2]
[323174411,1713771050340,-500.0,0.00023013,2]
[323174412,1713771050349,-551.6,0.00023013,2]
[323174413,1713771050359,-512.96,0.00023013,2]
[323174414,1713771050368,-500.0,0.00023013,2]
[323174415,1713771050377,-2279.58,0.00023013,2]
[323174416,1713771050387,-500.0,0.00023013,2]
[323174417,1713771050396,-2400.32,0.00023013,2]
[323174418,1713771050406,-500.0,0.00023013,2]
[323174419,1713771050416,-1042.84,0.00023013,2]
[323174420,1713771050426,-987.76,0.00023013,2]
[323174421,1713771050436,-500.0,0.00023013,2]
[323174422,1713771050446,-500.0,0.00023013,2]
[323174423,1713771050459,-891.53,0.00023013,2]
[323174424,1713771050469,-209.94774834,0.00023013,2]
[323174425,1713771050478,-662.27,0.00023013,2]
[323174426,1713771050488,-500.0,0.00023013,2]
[323174427,1713771050498,-544.28,0.00023013,2]
[323174428,1713771050508,-500.0,0.00023013,2]
[323174429,1713771050517,-446.04312133,0.00023013,2]
[323174430,1713771050527,-1893.47,0.00023013,2]
[323174431,1713771050542,-1209.09,0.00023013,2]
[323174432,1713771050555,-1729.68,0.00023013,2]
[323174433,1713771050565,-520.04,0.00023013,2]
[323174434,1713771050574,-530.72,0.00023013,2]
[323174435,1713771050584,-5968.09,0.00023013,2]
[323174436,1713771050593,-500.0,0.00023013,2]
[323174437,1713771050602,-814.84,0.00023013,2]
[323174438,1713771050611,-4318.26,0.00023013,2]
[323174439,1713771050621,-855.27,0.00023013,2]
[323174440,1713771050632,-500.0,0.00023013,2]
[323174441,1713771050642,-1637.34,0.00023013,2]
[323174442,1713771050652,-8414.55,0.00023013,2]
[323174443,1713771050662,-386.63312936,0.00023013,2]
[323174444,1713771050671,-500.0,0.00023013,2]
[323174445,1713771050681,-511.45,0.00023013,2]
[323174446,1713771050691,-297.14789909,0.00023013,2]
[323174447,1713771050700,-5942.22,0.00023013,2]
[323174448,1713771050709,-500.0,0.00023013,2]
[323174449,1713771050719,-500.0,0.00023013,2]
[323174450,1713771050729,-864.39,0.00023013,2]
[323174451,1713771050739,-1481.71,0.00023013,2]
[323174452,1713771050749,-500.0,0.00023013,2]
[323174453,1713771050759,-599.44,0.00023013,2]
[323174454,1713771050770,-929.38,0.00023013,2]
[323174455,1713771050783,-500.0,0.00023013,2]
[323174456,1713771050793,-824.57,0.00023013,2]
[323174457,1713771050803,-500.0,0.00023013,2]
[323174458,1713771050813,-683.82,0.00023013,2]
[323174459,1713771050823,-6331.87,0.00023013,2]
[323174460,1713771050833,-740.12,0.00023013,2]
[323174461,1713771050843,-500.0,0.00023013,2]
[323174462,1713771050853,-1229.03,0.00023013,2]
[323174463,1713771050863,-500.0,0.00023013,2]
[323174464,1713771050872,-1773.05,0.00023013,2]
[323174465,1713771050882,-500.0,0.00023013,2]
[323174466,1713771050891,-500.0,0.00023013,2]
[323174467,1713771050901,-9168.41,0.00023013,2]
[323174468,1713771050910,-500.0,0.00023013,2]
[323174469,1713771050920,-500.0,0.00023013,2]
[323174470,1713771050929,-500.0,0.00023013,2]
[323174471,1713771050939,-603.54,0.00023013,2]
[323174472,1713771050949,-545.2,0.00023013,2]
[323174473,1713771050959,-637.24,0.00023013,2]
[323174474,1713771050968,-500.0,0.00023013,2]
[323174475,1713771050979,-910.54,0.00023013,2]
[323174476,1713771050988,-671.87,0.00023013,2]
[323174477,1713771051104,-1223.34,0.00023013,2]
[323174478,1713771051114,-5648.11,0.00023013,2]
[323174479,1713771051124,-816.69,0.00023013,2]
[323174480,1713771051134,-500.0,0.00023013,2]
[323174481,1713771051144,-1094.87,0.00023013,2]
[323174482,1713771051155,-500.0,0.00023013,2]
[323174483,1713771051166,-4561.56,0.00023013,2]
[323174484,1713771051177,-500.0,0.00023013,2]
[323174485,1713771051187,-500.0,0.00023013,2]
[323174486,1713771051196,-500.0,0.00023013,2]
[323174487,1713771051207,-500.0,0.00023013,2]
[323174488,1713771051217,-500.0,0.00023013,2]
[323174489,1713771051228,-521.6,0.00023013,2]
[323174490,1713771051237,-748.06,0.00023013,2]
[323174491,1713771051247,-660.25,0.00023013,2]
[323174492,1713771051256,-151.0,0.00023013,2]
[323174493,1713771051266,-150.0,0.00023169,2]
[323174494,1713771051276,-1000.0,0.000232,2]
[323174495,1713771051289,-909.83,0.00023287,2]
[323174496,1713771051297,-500.0,0.00023287,2]
[323174497,1713771051306,-649.35,0.00023287,2]
[323174498,1713771051316,-781.95,0.00023287,2]
[323174499,1713771051360,-500.0,0.00023287,2]
[323174500,1713771051370,-618.79,0.00023287,2]
[323174501,1713771051380,-500.0,0.00023287,2]
[323174502,1713771051390,-500.0,0.00023287,2]
[323174503,1713771051399,-1676.89,0.00023287,2]
[323174504,1713771051409,-500.0,0.00023287,2]
[323174505,1713771051418,-500.0,0.00023287,2]
[323174506,1713771051429,-1796.53,0.00023287,2]
[323174507,1713771051438,-500.0,0.00023287,2]
[323174508,1713771051450,-500.0,0.00023287,2]
[323174509,1713771051463,-500.0,0.00023287,2]
[323174510,1713771051472,-226.66783734,0.00023287,2]
[323174511,1713771051483,-500.0,0.00023287,2]
[323174512,1713771051493,-500.0,0.00023287,2]
[323174513,1713771051503,-532.06,0.00023287,2]
[323174514,1713771051512,-378.34572552,0.00023287,2]
[323174515,1713771051521,-528.59,0.00023287,2]
[323174516,1713771051532,-510.11,0.00023287,2]
[323174517,1713771051542,-563.65,0.00023287,2]
[323174518,1713771051552,-530.37415491,0.00023287,2]
[323174519,1713771051562,-1715.53,0.00023287,2]
[323174520,1713771051572,-500.0,0.00023287,2]
[323174521,1713771051581,-500.0,0.00023287,2]
[323174522,1713771051590,-838.09,0.00023287,2]
[323174523,1713771051599,-500.0,0.00023287,2]
[323174524,1713771051609,-500.0,0.00023287,2]
[323174525,1713771051619,-1211.3,0.00023287,2]
[323174526,1713771051630,-500.0,0.00023287,2]
[323174527,1713771051639,-500.0,0.00023287,2]
[323174528,1713771051649,-1791.31,0.00023287,2]
[323174529,1713771051659,-765.95,0.00023287,2]
[323174530,1713771051668,-672.43,0.00023287,2]
[323174531,1713771051678,-500.0,0.00023287,2]
[323174532,1713771051687,-500.0,0.00023287,2]
[323174533,1713771051696,-703.56,0.00023287,2]
[323174534,1713771051706,-810.54,0.00023287,2]
[323174535,1713771051716,-500.0,0.00023287,2]
[323174536,1713771051726,-500.0,0.00023287,2]
[323174537,1713771051735,-500.0,0.00023287,2]
[323174538,1713771051745,-1339.24,0.00023287,2]
[323174539,1713771051755,-3162.37,0.00023287,2]
[323174540,1713771051764,-500.0,0.00023287,2]
[323174541,1713771051775,-1126.55,0.00023287,2]
[323174542,1713771051787,-940.4,0.00023287,2]
[323174543,1713771051796,-584.61,0.00023287,2]
[323174544,1713771051805,-500.0,0.00023287,2]
[323174545,1713771051814,-500.0,0.00023287,2]
[323174546,1713771051823,-500.0,0.00023287,2]
[323174547,1713771051835,-2107.45,0.00023287,2]
[323174548,1713771051847,-1238.19,0.00023287,2]
[323174549,1713771051858,-500.0,0.00023287,2]
[323174550,1713771051868,-631.52,0.00023287,2]
[323174551,1713771051877,-500.0,0.00023287,2]
[323174552,1713771051887,-500.0,0.00023287,2]
[323174553,1713771051898,-694.59,0.00023287,2]
[323174554,1713771051907,-500.0,0.00023287,2]
[323174555,1713771051916,-509.9324264,0.00023287,2]
[323174556,1713771051926,-500.0,0.00023287,2]
[323174557,1713771051936,-1436.04,0.00023287,2]
[323174558,1713771051946,-532.95,0.00023287,2]
[323174559,1713771051956,-500.0,0.00023287,2]
[323174560,1713771051966,-500.0,0.00023287,2]
[323174561,1713771051976,-500.0,0.00023287,2]
[323174562,1713771051986,-651.21,0.00023287,2]
[323174563,1713771051996,-500.0,0.00023287,2]
[323174564,1713771052008,-500.0,0.00023287,2]
[323174565,1713771052022,-500.0,0.00023287,2]
[323174566,1713771052034,-983.71,0.00023287,2]
[323174567,1713771052043,-500.0,0.00023287,2]
[323174568,1713771052054,-748.79,0.00023287,2]
[323174569,1713771052063,-500.0,0.00023287,2]
[323174570,1713771052075,-773.15,0.00023287,2]
[323174571,1713771052084,-1482.76,0.00023287,2]
[323174572,1713771052095,-500.0,0.00023287,2]
[323174573,1713771052105,-713.22,0.00023287,2]
[323174574,1713771052116,-500.0,0.00023287,2]
[323174575,1713771052125,-500.0,0.00023287,2]
[323174576,1713771052134,-520.76,0.00023287,2]
[323174577,1713771052143,-500.0,0.00023287,2]
[323174578,1713771052153,-500.0,0.00023287,2]
[323174579,1713771052163,-357.82857994,0.00023287,2]
[323174580,1713771052173,-845.63,0.00023287,2]
[323174581,1713771052186,-500.0,0.00023287,2]
[323174582,1713771052195,-500.0,0.00023287,2]
[323174583,1713771052205,-500.0,0.00023287,2]
[323174584,1713771052215,-500.0,0.00023287,2]
[323174585,1713771052225,-546.12,0.00023287,2]
[323174586,1713771052235,-500.0,0.00023287,2]
[323174587,1713771052244,-657.75,0.00023287,2]
[323174588,1713771052254,-1593.07,0.00023287,2]
[323174589,1713771052264,-540.67,0.00023287,2]
[323174590,1713771052274,-788.31,0.00023287,2]
[323174591,1713771052285,-1886.84,0.00023287,2]
[323174592,1713771052294,-500.0,0.00023287,2]
[323174593,1713771052304,-500.0,0.00023287,2]
[323174594,1713771052313,-1320.93,0.00023287,2]
[323174595,1713771052323,-500.0,0.00023287,2]
[323174596,1713771052333,-1499.42,0.00023287,2]
[323174597,1713771052342,-500.0,0.00023287,2]
[323174598,1713771052352,-551.6,0.00023287,2]
[323174599,1713771052361,-512.96,0.00023287,2]
[323174600,1713771052371,-500.0,0.00023287,2]
[323174601,1713771052380,-2279.58,0.00023287,2]
[323174602,1713771052391,-500.0,0.00023287,2]
[323174603,1713771052400,-2400.32,0.00023287,2]
[323174604,1713771052409,-500.0,0.00023287,2]
[323174605,1713771052418,-1042.84,0.00023287,2]
[323174606,1713771052428,-987.76,0.00023287,2]
[323174607,1713771052437,-500.0,0.00023287,2]
[323174608,1713771052447,-500.0,0.00023287,2]
[323174609,1713771052461,-891.53,0.00023287,2]
[323174610,1713771052471,-662.27,0.00023287,2]
[323174611,1713771052481,-500.0,0.00023287,2]
[323174612,1713771052490,-544.28,0.00023287,2]
[323174613,1713771052501,-616.32759555,0.00023287,2]
[323174614,1713771052510,-1893.47,0.00023287,2]
[323174615,1713771052520,-1209.09,0.00023287,2]
[323174616,1713771052532,-1729.68,0.00023287,2]
[323174617,1713771052542,-520.04,0.00023287,2]
[323174618,1713771052553,-530.72,0.00023287,2]
[323174619,1713771052565,-5968.09,0.00023287,2]
[323174620,1713771052575,-500.0,0.00023287,2]
[323174621,1713771052586,-814.84,0.00023287,2]
[323174622,1713771052596,-4318.26,0.00023287,2]
[323174623,1713771052606,-855.27,0.00023287,2]
[323174624,1713771052618,-500.0,0.00023287,2]
[323174625,1713771052630,-1637.34,0.00023287,2]
[323174626,1713771052643,-8414.55,0.00023287,2]
[323174627,1713771052654,-500.0,0.00023287,2]
[323174628,1713771052664,-511.45,0.00023287,2]
[323174629,1713771052675,-5942.22,0.00023287,2]
[323174630,1713771052686,-500.0,0.00023287,2]
[323174631,1713771052696,-550.03879321,0.00023287,2]
[323174632,1713771052709,-864.39,0.00023287,2]
[323174633,1713771052722,-1481.71,0.00023287,2]
[323174634,1713771052732,-500.0,0.00023287,2]
[323174635,1713771052743,-599.44,0.00023287,2]
[323174636,1713771052755,-929.38,0.00023287,2]
[323174637,1713771052766,-500.0,0.00023287,2]
[323174638,1713771052776,-824.57,0.00023287,2]
[323174639,1713771052788,-500.0,0.00023287,2]
[323174640,1713771052800,-683.82,0.00023287,2]
[323174641,1713771052810,-6331.87,0.00023287,2]
[323174642,1713771052819,-740.12,0.00023287,2]
[323174643,1713771052830,-500.0,0.00023287,2]
[323174644,1713771052841,-1229.03,0.00023287,2]
[323174645,1713771052851,-500.0,0.00023287,2]
[323174646,1713771052863,-1773.05,0.00023287,2]
[323174647,1713771052874,-500.0,0.00023287,2]
[323174648,1713771052883,-500.0,0.00023287,2]
[323174649,1713771052894,-9168.41,0.00023287,2]
[323174650,1713771052904,-500.0,0.00023287,2]
[323174651,1713771052916,-500.0,0.00023287,2]
[323174652,1713771052926,-500.0,0.00023287,2]
[323174653,1713771052935,-603.54,0.00023287,2]
[323174654,1713771052944,-545.2,0.00023287,2]
[323174655,1713771052955,-637.24,0.00023287,2]
[323174656,1713771052964,-500.0,0.00023287,2]
[323174657,1713771052975,-910.54,0.00023287,2]
[323174658,1713771052985,-671.87,0.00023287,2]
[323174659,1713771052995,-1223.34,0.00023287,2]
[323174660,1713771053005,-5648.11,0.00023287,2]
[323174661,1713771053015,-816.69,0.00023287,2]
[323174662,1713771053025,-500.0,0.00023287,2]
[323174663,1713771053036,-1094.87,0.00023287,2]
[323174664,1713771053046,-511.5660913,0.00023287,2]
[323174665,1713771053056,-500.0,0.00023287,2]
[323174666,1713771053065,-4561.56,0.00023287,2]
[323174667,1713771053074,-500.0,0.00023287,2]
[323174668,1713771053083,-500.0,0.00023287,2]
[323174669,1713771053092,-500.0,0.00023287,2]
[323174670,1713771053102,-500.0,0.00023287,2]
[323174671,1713771053111,-521.6,0.00023287,2]
[323174672,1713771053121,-748.06,0.00023287,2]
[323174673,1713771053132,-660.25,0.00023287,2]
[323174674,1713771053142,-1000.0,0.000233,3]
[323174675,1713771053151,-419498.84428614,0.00023397,2]
[323174676,1713771053161,-9318.57801882,0.00023399,2]
[323174677,1713771053170,-1000.0,0.000234,5]
[323174678,1713771053180,-909.83,0.00023561,2]
[323174679,1713771053190,-500.0,0.00023561,2]
[323174680,1713771053200,-649.35,0.00023561,2]
[323174681,1713771053210,-781.95,0.00023561,2]
[323174682,1713771053219,-500.0,0.00023561,2]
[323174683,1713771053229,-618.79,0.00023561,2]
[323174684,1713771053240,-500.0,0.00023561,2]
[323174685,1713771053250,-500.0,0.00023561,2]
[323174686,1713771053260,-1676.89,0.00023561,2]
[323174687,1713771053270,-500.0,0.00023561,2]
[323174688,1713771053280,-500.0,0.00023561,2]
[323174689,1713771053293,-1796.53,0.00023561,2]
[323174690,1713771053304,-500.0,0.00023561,2]
[323174691,1713771053315,-500.0,0.00023561,2]
[323174692,1713771053325,-500.0,0.00023561,2]
[323174693,1713771053334,-505.17939538,0.00023561,2]